bitfinex-derivatives/quotes_ETHF0:USTF0_20240818
["timestamp","ask_amount","ask_price","bid_price","bid_amount"]
[1724022971720,3.2078,2638.7,2638.3,1.89492]
[1724022971721,5.10248,2638.7,2638.3,1.89492]
[1724022972115,8.89288,2638.7,2638.3,1.89492]
[1724022972831,3.2078,2638.7,2638.2,0.00568333]
[1724022973025,3.2078,2638.7,2638.4,1.89479]
[1724022973229,3.2078,2638.7,2638.2,0.00568333]
[1724022973422,3.2078,2638.7,2638.4,1.89484]
[1724022973730,3.2078,2638.7,2638.2,0.00568333]
[1724022973731,1.89479,2638.5,2638.2,0.00568333]
[1724022973928,3.2078,2638.3,2638.2,0.00568333]
[1724022974132,5.10272,2638.3,2638.2,0.00568333]
[1724022974323,6.9982,2638.3,2638.2,0.00568333]
[1724022974523,8.89312,2638.3,2638.2,0.00568333]
[1724022975031,6.9982,2638.3,2638.2,0.00568333]
[1724022976028,13.89312,2638.3,2638.2,0.00568333]
[1724022976524,13.89312,2638.3,2638.0,11.93303429]
[1724022976525,3.79012,2638.1,2638.0,11.93303429]
[1724022976733,3.79283415,2638.1,2638.0,11.93303429]
[1724022977027,12.58323415,2638.1,2638.0,11.93303429]
[1724022977423,10.68817415,2638.1,2638.0,11.93303429]
[1724022978523,6.89777415,2638.1,2638.0,11.93303429]
[1724022978726,10.68817415,2638.1,2638.0,11.93303429]
[1724022978928,0.00271415,2638.1,2638.0,13.82816429]
[1724022979114,5.68817415,2638.1,2638.0,11.93303429]
[1724022979518,3.79311415,2638.1,2638.0,11.93303429]
[1724022979730,5.68817415,2638.1,2638.0,11.93303429]
[1724022979919,10.68817415,2638.1,2638.0,11.93303429]
[1724022980314,3.79311415,2638.1,2638.0,11.93303429]
[1724022980726,5.68817415,2638.1,2638.0,11.93303429]
[1724022980930,3.79311415,2638.1,2638.0,11.93303429]
[1724022981124,0.00271415,2638.1,2638.0,11.93303429]
[1724022981329,0.00271415,2638.1,2638.0,13.82816429]
[1724022982729,3.2078,2638.3,2638.2,1.89499]
[1724022983230,3.2078,2638.7,2638.2,10.68539]
[1724022983423,3.2078,2638.7,2638.3,0.3453]
[1724022983622,3.2078,2638.7,2638.6,1.8947]
[1724022983834,3.21247599,2638.7,2638.6,1.8947]
[1724022984223,0.00467599,2638.7,2638.6,1.8947]
[1724022987126,3.79427599,2638.7,2638.6,1.8947]
[1724022987330,0.00467599,2638.7,2638.6,1.8947]
[1724022988026,0.00467599,2638.7,2638.6,5.6843]
[1724022988821,3.2078,2639.3,2638.7,1.89463]
[1724022989017,3.2078,2639.3,2638.8,0.3658]
[1724022989219,5.10203,2639.3,2638.8,2.26033]
[1724022989430,5.10203,2639.3,2638.9,1.89448]
[1724022989431,3.2078,2639.3,2638.9,1.89448]
[1724022989831,5.10570519,2639.3,2638.9,1.89448]
[1724022990022,3.21149519,2639.3,2638.9,1.89448]
[1724022990225,3.21149519,2639.3,2639.1,1.8943]
[1724022991331,3.21149519,2639.3,2639.2,1.89427]
[1724022991736,3.21149519,2639.3,2639.0,1.89439]
[1724022991931,3.21149519,2639.3,2639.0,2.24439]
[1724022992333,8.89454519,2639.3,2638.9,2.25996]
[1724022992536,3.21149519,2639.3,2639.0,1.89441]
[1724022992727,5.10570519,2639.3,2638.9,2.25993]
[1724022993034,3.21149519,2639.3,2639.0,1.89441]
[1724022993332,3.21149519,2639.3,2638.9,2.25995]
[1724022993747,3.21149519,2639.3,2639.0,1.8944]
[1724022994135,3.21149519,2639.3,2638.9,2.25994]
[1724022994340,3.21149519,2639.3,2639.0,1.89441]
[1724022995234,3.21149519,2639.3,2639.2,1.89427]
[1724022996242,3.21149519,2639.3,2639.1,1.8943]
[1724022996436,3.21149519,2639.3,2639.2,1.89427]
[1724022997236,3.21149519,2639.3,2639.1,1.89428]
[1724022997831,3.21149519,2639.3,2639.2,1.89427]
[1724022999637,0.00568333,2639.4,2639.3,1.8942]
[1724022999943,4.085,2640.4,2639.9,1.89373]
[1724022999944,3.2078,2640.3,2639.9,1.89373]
[1724023000243,3.2078,2640.3,2640.0,0.7098]
[1724023000632,3.21087495,2640.3,2640.0,2.60714163]
[1724023000834,3.21087495,2640.3,2640.2,1.89355]
[1724023001740,3.21087495,2640.3,2640.2,5.68075]
[1724023001741,0.00307495,2640.3,2640.2,5.68075]
[1724023001937,0.00307495,2640.3,2640.1,0.54772637]
[1724023002136,0.00307495,2640.3,2640.1,0.3557]
[1724023002539,3.79027495,2640.3,2640.0,0.00365163]
[1724023002744,0.00307495,2640.3,2640.0,0.00365163]
[1724023003338,0.00307495,2640.3,2640.0,1.89732163]
[1724023003740,0.00307495,2640.3,2640.1,1.89362]
[1724023004044,0.00307495,2640.3,2640.2,1.89355]
[1724023004234,0.00307495,2640.3,2640.1,2.23609]
[1724023004736,0.00307495,2640.3,2640.2,1.89355]
[1724023005044,0.00307495,2640.3,2640.1,2.23608]
[1724023005235,0.00307495,2640.3,2640.1,0.3425]
[1724023005434,0.00307495,2640.3,2640.1,2.23611]
[1724023006943,0.00307495,2640.3,2640.2,1.89355]
[1724023007741,0.00307495,2640.3,2640.1,2.42139304]
[1724023008143,0.00307495,2640.3,2640.1,2.23609]
[1724023008444,0.00307495,2640.3,2640.0,0.00365163]
[1724023008646,5.10143,2640.1,2640.0,0.00365163]
[1724023008943,5.10143,2640.1,2640.0,0.00228001]
[1724023009245,8.88943,2640.1,2640.0,0.00228001]
[1724023009438,13.88943,2640.1,2640.0,0.00228001]
[1724023010444,8.88943,2640.1,2640.0,0.00228001]
[1724023010638,6.9958,2640.1,2640.0,0.00228001]
[1724023010843,11.9958,2640.1,2640.0,0.00228001]
[1724023011047,13.88943,2640.1,2640.0,0.00228001]
[1724023013148,8.88943,2640.1,2640.0,0.00228001]
[1724023013448,13.88943,2640.1,2640.0,0.00228001]
[1724023014637,3.2078,2640.1,2640.0,0.00228001]
[1724023014842,6.9958,2640.1,2640.0,0.00228001]
[1724023015043,8.88943,2640.1,2640.0,0.00228001]
[1724023015251,6.9958,2640.1,2640.0,1.89598001]
[1724023015438,8.88943,2640.1,2640.0,0.00228001]
[1724023017545,6.9958,2640.1,2640.0,0.00228001]
[1724023017847,3.2078,2640.1,2640.0,1.89598001]
[1724023018054,8.88943,2640.1,2640.0,0.00228001]
[1724023019146,5.10143,2640.1,2640.0,0.00228001]
[1724023020645,8.88943,2640.1,2640.0,0.00228001]
[1724023020943,1.89427,2639.2,2639.1,11.93]
[1724023021144,8.89087,2639.2,2639.1,11.93]
[1724023021401,13.89087,2639.2,2639.1,11.93]
[1724023021541,3.78898,2638.9,2638.8,0.00568333]
[1724023021746,7.97189497,2638.9,2638.8,0.00568333]
[1724023021960,16.76149497,2638.9,2638.8,0.00929201]
[1724023022253,17.24905246,2638.9,2638.8,0.00929201]
[1724023022946,9.86674886,2638.9,2638.8,0.00929201]
[1724023023148,11.76123886,2638.9,2638.8,0.00929201]
[1724023023354,17.43859833,2638.9,2638.8,0.00929201]
[1724023023760,15.97592587,2638.9,2638.8,0.00929201]
[1724023024154,17.93504946,2638.9,2638.8,0.00929201]
[1724023024348,15.97592587,2638.9,2638.8,0.00929201]
[1724023024560,13.62192452,2638.9,2637.4,7.90973686]
[1724023024754,5.10314,2637.8,2637.4,9.80526686]
[1724023025152,1.89539,2637.7,2637.4,7.90973686]
[1724023025454,1.89539,2637.7,2637.6,1.89542]
[1724023025455,0.00356225,2637.7,2637.6,1.89542]
[1724023025648,0.00356225,2637.7,2637.5,1.89546]
[1724023026057,0.00356225,2637.7,2637.6,1.89542]
[1724023027151,0.00356225,2637.7,2637.4,9.81002441]
[1724023027357,3.21136225,2637.7,2637.5,1.89546]
[1724023027959,3.21136225,2637.7,2637.4,9.81003441]
[1724023028350,3.21136225,2637.7,2637.5,1.89548]
[1724023029148,3.21136225,2637.7,2637.4,9.81001441]
[1724023029458,1.89548,2637.6,2637.4,7.91449441]
[1724023030151,1.89549,2637.5,2637.4,7.91449441]
[1724023030346,5.68669,2637.5,2637.4,7.91449441]
[1724023030552,10.68669,2637.5,2637.4,7.91449441]
[1724023031764,12.58218,2637.5,2637.4,7.91449441]
[1724023032266,13.55726088,2637.5,2637.4,7.91449441]
[1724023033056,3.7912,2637.5,2637.4,7.91449441]
[1724023033258,5.68669,2637.5,2637.4,7.91449441]
[1724023033860,3.7912,2637.5,2637.4,7.91449441]
[1724023034958,5.68666,2637.5,2637.4,7.91449441]
[1724023036566,10.68666,2637.5,2637.4,7.91449441]
[1724023037259,12.58212,2637.5,2637.4,7.91449441]
[1724023037651,5.68666,2637.5,2637.4,7.91449441]
[1724023037966,1.89543,2637.6,2637.4,7.91449441]
[1724023038169,3.21136225,2637.7,2637.4,7.91449441]
[1724023038461,1.89543,2637.6,2637.4,7.91449441]
[1724023038667,5.10671225,2637.7,2637.4,7.91449441]
[1724023038965,3.21136225,2637.7,2637.4,8.61699441]
[1724023039158,3.21136225,2637.7,2637.4,8.96599441]
[1724023039669,3.21136225,2637.7,2637.6,1.89539]
[1724023040265,7.00256225,2637.7,2637.4,10.86152441]
[1724023040460,7.00256225,2637.7,2637.4,10.86151441]
[1724023040461,3.21136225,2637.7,2637.4,10.86151441]
[1724023040657,3.21136225,2637.7,2637.4,8.96599441]
[1724023040859,3.21136225,2637.7,2637.6,1.89539]
[1724023041464,0.00356225,2637.7,2637.6,5.68659]
[1724023041660,0.00568333,2637.8,2637.7,1.89532]
[1724023041885,7.2928,2638.3,2638.1,1.89498]
[1724023042062,7.2928,2638.3,2637.8,7.90973686]
[1724023042063,3.2078,2638.3,2637.8,7.90973686]
[1724023042562,3.21181163,2638.3,2637.8,7.90973686]
[1724023042768,3.2078,2638.0,2637.8,7.90973686]
[1724023043565,5.10293,2638.0,2637.8,7.90973686]
[1724023043758,1.89518,2637.9,2637.8,7.90973686]
[1724023044066,5.68638,2637.9,2637.8,7.90973686]
[1724023044460,10.68638,2637.9,2637.8,6.58256652]
[1724023045563,5.68638,2637.9,2637.8,6.58256652]
[1724023046467,5.68638,2637.9,2637.8,5.25556652]
[1724023046871,3.7912,2637.9,2637.8,5.25556652]
[1724023047060,5.10292,2638.0,2637.8,5.25556652]
[1724023047260,1.89518,2637.9,2637.8,5.25556652]
[1724023047688,5.68638,2637.9,2637.8,5.25556652]
[1724023051067,3.2078,2638.0,2637.8,5.25556652]
[1724023051261,1.89518,2637.9,2637.8,5.25556652]
[1724023051461,7.58156,2637.9,2637.8,5.25556652]
[1724023051875,12.58156,2637.9,2637.8,1.84201984]
[1724023052270,5.68638,2637.9,2637.8,1.84201984]
[1724023053071,7.58156,2637.9,2637.8,1.84201984]
[1724023054664,14.47674,2637.9,2637.8,1.84201984]
[1724023055072,19.42992,2637.9,2637.8,9.84e-06]
[1724023055277,5.68641,2637.5,2637.4,0.00475755]
[1724023055470,11.95221,2637.5,2637.4,0.00475755]
[1724023055667,20.74341,2637.5,2637.4,7.55e-06]
[1724023056270,21.08781,2637.5,2637.4,7.55e-06]
[1724023056662,21.08781,2637.5,2637.3,0.00568333]
[1724023056663,9.47862,2637.4,2637.3,8.8e-07]
[1724023056865,10.94124132,2637.4,2637.3,8.8e-07]
[1724023057064,14.47862,2637.4,2637.3,8.8e-07]
[1724023057273,16.13091398,2637.4,2637.3,8.8e-07]
[1724023057779,16.13091398,2637.4,2637.3,7.06e-06]
[1724023058275,14.66829266,2637.4,2637.3,7.06e-06]
[1724023058469,14.66830222,2637.4,2637.3,7.06e-06]
[1724023059468,14.66830222,2637.4,2635.4,3.058]
[1724023059469,3.792,2637.3,2635.4,3.058]
[1724023059672,3.2078,2636.3,2636.0,0.7103]
[1724023059877,3.2078,2636.3,2636.2,2.2606]
[1724023060178,3.2078,2636.3,2636.2,6.0542]
[1724023060573,3.21063172,2636.3,2636.2,11.05805192]
[1724023060797,0.00283172,2636.3,2636.2,12.95445192]
[1724023063078,0.00283172,2636.3,2636.2,11.05805192]
[1724023064996,0.00283172,2636.3,2636.2,6.05805192]
[1724023066874,0.00568333,2636.5,2636.4,3.79252]
[1724023067068,8.7501269,2637.0,2636.9,1.8959]
[1724023067069,4.17935126,2637.0,2636.9,1.8959]
[1724023067272,3.2078,2637.0,2636.9,1.8959]
[1724023067486,3.2078,2637.0,2636.9,5.6879]
[1724023067978,3.21218077,2637.0,2636.9,5.6879]
[1724023070088,0.00568333,2637.2,2637.1,1.89575]
[1724023070277,0.97155126,2637.4,2637.3,1.89561]
[1724023070679,0.97155126,2637.4,2637.3,5.68761]
[1724023070978,0.97155126,2637.5,2637.4,1.89554]
[1724023071180,0.97155126,2637.7,2637.6,1.89539]
[1724023071368,0.97723459,2637.7,2637.6,1.89539]
[1724023071575,0.98135019,2637.7,2637.6,1.89539]
[1724023072881,0.98135019,2637.7,2637.6,5.68659]
[1724023073084,0.98135019,2637.7,2637.5,2.26783]
[1724023073378,0.97155126,2637.6,2637.5,0.3724]
[1724023073578,0.97742384,2637.6,2637.5,0.3724]
[1724023074169,0.97748112,2637.6,2637.5,0.3724]
[1724023075474,2.88261005,2637.7,2637.5,0.3724]
[1724023075674,0.97748112,2637.6,2637.5,0.3724]
[1724023076185,2.87287112,2637.6,2637.5,0.3724]
[1724023076371,3.3527169,2637.6,2637.5,0.3724]
[1724023077683,1.4573269,2637.6,2637.5,0.3724]
[1724023077885,0.97764762,2637.6,2637.5,0.3724]
[1724023078482,0.98744655,2637.7,2637.6,1.89539]
[1724023078680,0.98744655,2637.7,2637.5,4.1636]
[1724023078872,0.97764762,2637.6,2637.5,0.3724]
[1724023079484,2.87303762,2637.6,2637.5,0.3724]
[1724023079675,1.89539,2637.6,2637.5,0.3724]
[1724023079872,3.54233196,2637.6,2637.5,0.3724]
[1724023080073,2.08500506,2637.6,2637.5,0.3724]
[1724023080280,2.08501424,2637.6,2637.5,0.3724]
[1724023080579,3.5513236,2637.6,2637.5,0.3724]
[1724023080772,3.36169936,2637.6,2637.5,0.3724]
[1724023080973,9.47761,2637.5,2637.4,0.916]
[1724023081177,16.86073947,2637.5,2637.4,0.53007202]
[1724023081380,21.86073947,2637.5,2637.4,0.53007202]
[1724023081578,21.86073947,2637.5,2637.4,2.02e-06]
[1724023081780,21.86073947,2637.5,2636.7,0.37738333]
[1724023081781,3.79194,2636.8,2636.7,0.00568333]
[1724023081979,14.38478933,2636.8,2636.7,0.00568333]
[1724023082179,21.8270115,2636.8,2636.7,0.00568333]
[1724023082378,21.87352668,2636.8,2636.7,0.00568333]
[1724023082583,21.87352668,2636.8,2636.7,3.33e-06]
[1724023082883,25.27734371,2636.8,2636.7,3.33e-06]
[1724023083092,25.16255205,2636.8,2636.7,3.33e-06]
[1724023083387,22.23188545,2636.8,2636.7,3.33e-06]
[1724023083586,25.16255205,2636.8,2636.7,3.33e-06]
[1724023083799,21.75873502,2636.8,2636.7,3.33e-06]
[1724023084491,22.99784394,2636.8,2636.7,3.33e-06]
[1724023085287,22.52473502,2636.8,2636.7,3.33e-06]
[1724023085586,22.99784985,2636.8,2636.7,3.33e-06]
[1724023085781,3.79266,2636.3,2635.6,0.3478]
[1724023085976,9.14086423,2636.3,2635.6,0.3478]
[1724023086185,12.93446423,2636.3,2635.6,0.3478]
[1724023086389,19.83079423,2636.3,2636.2,1.92e-06]
[1724023086594,21.53867261,2636.3,2636.2,1.92e-06]
[1724023087091,18.8723086,2636.3,2636.2,1.92e-06]
[1724023087288,19.10035154,2636.3,2636.2,1.92e-06]
[1724023087491,19.13375154,2636.3,2636.2,1.92e-06]
[1724023087685,18.9057086,2636.3,2636.2,1.92e-06]
[1724023087985,19.13375417,2636.3,2636.2,1.92e-06]
[1724023088692,1.89702,2635.4,2635.0,2.96963]
[1724023088879,1.89705,2635.3,2635.0,2.96964]
[1724023089279,3.2078,2635.5,2635.0,1.0724]
[1724023089487,1.89715,2635.2,2635.0,1.0724]
[1724023089694,0.00312457,2635.2,2635.0,1.07718667]
[1724023089997,0.00312457,2635.2,2635.1,5.69239]
[1724023090985,0.00312457,2635.2,2635.1,10.69239]
[1724023091282,4.085,2635.7,2635.6,1.89683]
[1724023091491,1.94784641,2636.3,2635.6,3.7944]
[1724023091492,5.0589232,2636.3,2635.6,3.7944]
[1724023091786,5.0589232,2636.3,2635.6,1.89679]
[1724023091993,1.89666,2635.9,2635.7,0.722]
[1724023092189,0.0044827,2635.9,2635.7,0.722]
[1724023092381,0.0044827,2635.9,2635.8,3.7936]
[1724023093318,1.9011027,2635.9,2635.7,0.722]
[1724023093480,0.0044827,2635.9,2635.7,0.722]
[1724023093887,1.9011327,2635.9,2635.7,0.722]
[1724023094290,1.89669,2635.8,2635.7,0.722]
[1724023094790,1.9011427,2635.9,2635.7,0.722]
[1724023094982,1.9011427,2635.9,2635.5,0.00568333]
[1724023094983,0.0044827,2635.9,2635.5,0.00568333]
[1724023095184,1.89683,2635.6,2635.5,0.00568333]
[1724023095694,5.69123,2635.6,2635.5,0.00568333]
[1724023096090,1.89683,2635.6,2635.5,0.00568333]
[1724023096295,3.2078,2635.8,2635.5,0.00568333]
[1724023096296,1.8968,2635.7,2635.5,0.00568333]
[1724023096488,3.2078,2635.8,2635.6,1.89679]
[1724023096690,3.2078,2635.8,2635.5,1.90254333]
[1724023097090,5.10452,2635.8,2635.5,1.90254333]
[1724023097494,3.2078,2635.8,2635.6,1.89682]
[1724023097695,3.2078,2635.8,2635.5,0.00568333]
[1724023097696,0.0044827,2635.9,2635.7,1.89675]
[1724023097885,0.0044827,2635.9,2635.8,0.707]
[1724023098091,1.9011027,2635.9,2635.8,0.707]
[1724023098494,0.0044827,2635.9,2635.5,0.00568333]
[1724023098788,1.8968,2635.7,2635.5,0.00568333]
[1724023099395,1.89683,2635.6,2635.5,0.00568333]
[1724023099592,7.58806,2635.6,2635.5,0.00568333]
[1724023099900,15.4588132,2635.6,2635.5,0.00568333]
[1724023100314,1.89719,2635.1,2634.9,2.064]
[1724023100487,7.00218,2635.1,2634.9,2.064]
[1724023100694,10.79738,2635.1,2634.9,2.064]
[1724023100995,8.90019,2635.1,2634.9,2.064]
[1724023102098,10.79738,2635.1,2634.9,2.064]
[1724023102595,15.79738,2635.1,2634.9,2.064]
[1724023102903,10.79738,2635.1,2634.9,2.064]
[1724023103599,8.90019,2635.1,2634.9,2.064]
[1724023104196,15.79738,2635.1,2634.9,2.064]
[1724023105988,10.79738,2635.1,2634.9,2.064]
[1724023106398,8.90019,2635.1,2634.9,2.064]
[1724023106898,5.10499,2635.1,2634.9,2.064]
[1724023107127,3.2078,2635.1,2635.0,0.36038667]
[1724023107405,3.2078,2635.1,2635.0,1.07358667]
[1724023107599,5.10499,2635.1,2635.0,1.07358667]
[1724023108294,5.10499,2635.1,2635.0,0.36038667]
[1724023108295,3.2078,2635.1,2635.0,0.36038667]
[1724023108493,3.2078,2635.1,2635.0,0.73358667]
[1724023108700,3.2078,2635.1,2635.0,1.07358667]
[1724023109707,5.10499,2635.1,2635.0,1.07358667]
[1724023109895,3.2078,2635.1,2635.0,1.07358667]
[1724023110401,1.89716,2635.2,2635.0,1.07358667]
[1724023111103,5.10499,2635.1,2635.0,1.07358667]
[1724023112208,7.00218,2635.1,2635.0,0.00478667]
[1724023114799,15.79738,2635.1,2635.0,0.00478667]
[1724023115002,1.89767,2634.5,2634.1,0.7272]
[1724023115306,1.89773,2634.4,2634.1,2.62508]
[1724023115509,5.10548,2634.5,2634.2,1.89781]
[1724023115902,3.2078,2634.5,2634.2,0.00367385]
[1724023116192,3.2078,2634.5,2634.4,1.89769]
[1724023116609,3.2078,2634.5,2634.2,0.00367385]
[1724023116802,3.2078,2634.5,2634.3,1.8977]
[1724023117498,3.2078,2634.5,2634.4,1.89769]
[1724023118498,3.2078,2634.5,2634.3,1.89771]
[1724023118693,3.2078,2634.5,2634.4,1.89769]
[1724023118900,0.00568333,2634.6,2634.5,1.89762]
[1724023119095,3.21348333,2634.6,2634.5,1.89762]
[1724023119298,3.21348333,2634.6,2634.5,5.69362]
[1724023119611,0.00568333,2634.6,2634.5,5.69362]
[1724023120904,7.2928,2635.3,2635.2,1.89711]
[1724023121097,2.296,2635.5,2635.1,2.06142091]
[1724023121311,1.89707,2635.3,2635.2,0.3518]
[1724023121811,3.2078,2635.5,2635.2,0.3518]
[1724023122212,1.89704,2635.3,2635.2,0.3518]
[1724023123712,7.40074,2635.5,2635.1,2.06711513]
[1724023123907,1.89711,2635.2,2635.1,2.06711513]
[1724023125514,6.07736926,2635.2,2635.1,2.06711513]
[1724023125807,6.08045884,2635.2,2635.1,2.06711513]
[1724023126013,6.08046228,2635.2,2635.1,2.06711513]
[1724023126312,5.10491,2635.2,2635.1,2.06711513]
[1724023126700,6.08051303,2635.2,2635.1,2.06711513]
[1724023127513,6.75559054,2635.2,2635.1,2.06711513]
[1724023127715,6.5657948,2635.2,2635.1,2.06711513]
[1724023128412,6.7555855,2635.2,2635.1,2.06711513]
[1724023129003,4.8584755,2635.2,2635.1,2.06711513]
[1724023129202,4.6686848,2635.2,2635.1,2.06711513]
[1724023130112,4.6686848,2635.2,2635.1,7.75949513]
[1724023130113,4.18459139,2635.2,2635.1,7.75949513]
[1724023130324,3.2078,2635.2,2635.1,7.75949513]
[1724023130607,0.97679139,2635.4,2635.3,1.89704]
[1724023130801,4.19028561,2635.6,2635.4,1.89697]
[1724023131002,4.19028561,2635.6,2635.5,0.7294]
[1724023131202,4.67437902,2635.6,2635.5,0.7294]
[1724023131409,4.67437902,2635.6,2635.5,2.62629]
[1724023131723,3.21349422,2635.6,2635.5,0.7294]
[1724023131917,5.11031422,2635.6,2635.5,0.7294]
[1724023132213,6.57119902,2635.6,2635.5,0.7294]
[1724023132513,5.30007038,2635.6,2635.5,0.7294]
[1724023133109,4.86934372,2635.6,2635.5,0.7294]
[1724023133412,4.67958756,2635.6,2635.5,0.7294]
[1724023133616,4.86933727,2635.6,2635.5,0.7294]
[1724023134008,6.57640756,2635.6,2635.5,0.7294]
[1724023134213,4.86936031,2635.6,2635.5,0.7294]
[1724023134814,0.00569422,2635.6,2635.5,6.4207]
[1724023135720,0.98189543,2635.9,2635.5,16.68992091]
[1724023135915,0.98189543,2635.9,2635.8,1.89668]
[1724023135916,0.0044827,2635.9,2635.8,1.89668]
[1724023136122,0.0044827,2635.9,2635.8,6.89668]
[1724023136320,0.0044827,2635.9,2635.8,10.69028]
[1724023137418,0.0044827,2635.9,2635.8,5.69028]
[1724023137722,0.0044827,2635.9,2635.8,10.69028]
[1724023139212,0.00569422,2636.1,2636.0,1.89654]
[1724023139411,0.97741273,2636.6,2636.1,1.89647]
[1724023139724,0.97741273,2636.6,2636.5,1.89618]
[1724023140016,1.46611695,2636.7,2636.5,1.89618]
[1724023140017,0.97741273,2636.7,2636.5,1.89618]
[1724023140229,0.98158823,2636.7,2636.5,5.69347088]
[1724023140524,3.7969755,2636.7,2636.5,0.00449088]
[1724023140719,3.7969755,2636.7,2636.2,2.06142091]
[1724023140720,1.89632,2636.3,2636.2,2.06142091]
[1724023140921,1.89691,2635.5,2635.1,0.00569422]
[1724023141156,1.89691,2635.5,2635.2,0.3416]
[1724023141418,1.89704,2635.3,2635.2,0.3416]
[1724023141620,3.79422,2635.2,2635.1,0.00569422]
[1724023141809,14.02141503,2635.2,2635.1,0.00865424]
[1724023142013,19.02141503,2635.2,2635.1,0.00865424]
[1724023142319,1.89719,2635.1,2633.6,3.2078]
[1724023142512,1.89719,2635.1,2633.8,1.0705]
[1724023142513,0.9752105,2634.6,2633.8,1.0705]
[1724023142712,0.9752105,2634.6,2633.9,1.89801]
[1724023143025,0.9752105,2634.6,2633.8,1.0705]
[1724023143026,3.2078,2634.5,2633.8,1.0705]
[1724023143220,1.89772,2634.4,2633.9,1.90371422]
[1724023143407,1.89777,2634.3,2633.9,1.90371422]
[1724023144010,1.89789,2634.2,2633.9,0.00569422]
[1724023144411,4.18592738,2634.5,2633.9,0.00569422]
[1724023144613,1.89786,2634.2,2633.9,1.90370422]
[1724023144925,1.89786,2634.2,2633.9,0.00569422]
[1724023145626,3.21071688,2634.5,2633.9,1.90368422]
[1724023145925,1.89786,2634.2,2633.9,1.90368422]
[1724023146107,3.21071688,2634.5,2633.9,1.90368422]
[1724023146309,1.89783,2634.3,2633.9,1.90368422]
[1724023146515,1.89785,2634.2,2633.9,1.90368422]
[1724023146720,1.89798,2634.0,2633.9,0.00569422]
[1724023146919,5.10578,2634.0,2633.9,0.00569422]
[1724023147116,1.89798,2634.0,2633.9,0.00569422]
[1724023147322,5.10578,2634.0,2633.9,0.00569422]
[1724023147638,5.10578,2634.0,2633.0,3.2078]
[1724023147639,3.7968,2633.9,2633.0,3.2078]
[1724023147820,0.97367182,2633.3,2632.7,0.3383]
[1724023148034,5.19920873,2633.8,2632.7,0.3383]
[1724023148035,2.87190182,2633.7,2632.7,3.5461]
[1724023148212,4.67061576,2633.8,2632.7,3.5461]
[1724023148213,3.2078,2633.8,2632.7,3.5461]
[1724023148428,3.2078,2633.8,2632.8,4.01407266]
[1724023148617,1.89857,2633.2,2632.8,0.00384695]
[1724023148811,0.97367182,2633.5,2633.0,0.00569422]
[1724023149011,3.2078,2633.3,2633.0,0.00569422]
[1724023149923,3.2078,2633.3,2633.0,1.90437422]
[1724023150113,1.89836,2633.5,2633.0,0.00569422]
[1724023150315,3.2078,2633.6,2633.0,0.00569422]
[1724023150718,3.2078,2633.6,2633.1,1.89862]
[1724023151024,3.2078,2633.6,2633.3,1.89848]
[1724023151210,3.2078,2633.6,2633.2,0.707]
[1724023151417,3.2078,2633.6,2633.5,1.89834]
[1724023151616,1.13184659,2634.8,2634.7,43.35841]
[1724023151831,1.9449322,2635.7,2635.6,1.89682]
[1724023152014,4.46339527,2635.9,2635.5,3.2078]
[1724023152212,1.86904573,2635.6,2635.5,3.2078]
[1724023152417,1.86904573,2635.6,2635.2,3.2078]
[1724023152715,0.00322003,2635.6,2635.2,3.21123051]
[1724023152914,1.86904573,2635.3,2635.2,3.21123051]
[1724023153823,3.76608573,2635.3,2635.2,0.00343051]
[1724023154027,11.97388573,2635.3,2635.2,0.00343051]
[1724023154222,10.07684573,2635.3,2635.2,0.00343051]
[1724023154542,1.86904573,2635.3,2635.2,0.00343051]
[1724023157123,1.86904573,2635.3,2635.2,3.21123051]
[1724023157713,0.00322003,2635.6,2635.3,1.89698]
[1724023158018,1.86904573,2635.4,2635.2,5.10828051]
[1724023158225,1.86904573,2635.4,2635.2,3.21123051]
[1724023158430,1.86904573,2635.4,2635.3,1.89704]
[1724023158623,0.00322003,2635.6,2635.4,1.89693]
[1724023158836,1.86904573,2635.4,2635.3,1.89701]
[1724023159126,0.00322003,2635.6,2635.5,1.89689]
[1724023159331,4.22e-06,2635.7,2635.6,1.89682]
[1724023159524,4.22e-06,2635.7,2635.6,2.25012]
[1724023159723,4.22e-06,2635.7,2635.6,11.04452]
[1724023160218,6.89e-06,2635.7,2635.6,11.04452]
[1724023160419,6.89e-06,2635.7,2635.6,11.41452]
[1724023161026,6.89e-06,2635.7,2635.6,13.31134]
[1724023161631,1.11e-06,2635.9,2635.8,1.89668]
[1724023161834,1.11e-06,2635.9,2635.8,5.10448]
[1724023162023,1.11e-06,2635.9,2635.8,13.89808]
[1724023162426,1.11e-06,2635.9,2635.8,18.22333169]
[1724023162624,8.52e-06,2635.9,2635.8,18.22333169]
[1724023162933,8.52e-06,2635.9,2635.8,13.89808]
[1724023163733,2.74e-06,2636.1,2636.0,1.89654]
[1724023164130,2.74e-06,2636.1,2636.0,12.58668]
[1724023164431,2.74e-06,2636.1,2636.0,19.81621582]
[1724023164732,9.38e-06,2636.1,2636.0,19.81621582]
[1724023166126,3.6e-06,2636.3,2636.2,1.89639]
[1724023166344,3.6e-06,2636.3,2636.2,5.10419]
[1724023166532,3.6e-06,2636.3,2636.2,15.79418]
[1724023167238,6.82e-06,2636.3,2636.2,15.79418]
[1724023168232,7.29e-06,2636.5,2636.4,3.7925]
[1724023168434,7.29e-06,2636.5,2636.4,6.8545]
[1724023168636,7.29e-06,2636.5,2636.4,19.73162584]
[1724023169339,5.96e-06,2636.5,2636.4,19.73162584]
[1724023169740,5.96e-06,2636.5,2636.4,19.91867944]
[1724023169930,5.96e-06,2636.5,2636.4,13.9381036]
[1724023170125,5.96e-06,2636.5,2636.4,15.8343536]
[1724023172838,5.96e-06,2636.5,2636.4,5.68905]
[1724023175741,3.79280596,2636.5,2636.2,3.21349422]
[1724023175930,1.89632,2636.3,2636.2,0.00569422]
[1724023176335,1.89618596,2636.5,2636.2,0.00569422]
[1724023176336,5.96e-06,2636.5,2636.2,0.00569422]
[1724023176534,1.8963,2636.4,2636.2,0.00569422]
[1724023176740,1.89632,2636.3,2636.2,0.00569422]
[1724023176933,1.89639,2636.2,2635.2,0.00343051]
[1724023177131,1.89687,2635.6,2635.3,1.89701]
[1724023177433,3.2078,2636.0,2635.2,3.21123051]
[1724023177632,1.89669,2635.8,2635.6,1.89682]
[1724023178037,1.89664,2635.9,2635.7,1.89673]
[1724023178240,1.89664,2635.9,2635.6,1.89678]